bitfinex-derivatives/quotes_BTCF0:USTF0_20241125
["timestamp","ask_amount","ask_price","bid_price","bid_amount"]
[1732577382993,0.1052444,93717.0,93716.0,0.003]
[1732577383193,0.053355,93717.0,93716.0,0.003]
[1732577383390,0.21317778,93717.0,93716.0,0.003]
[1732577383889,0.21317778,93717.0,93716.0,0.001]
[1732577384096,0.15982278,93717.0,93716.0,0.056355]
[1732577384484,0.053354,93718.0,93716.0,0.056355]
[1732577385192,0.053355,93717.0,93716.0,0.056355]
[1732577385494,0.053355,93717.0,93716.0,0.003]
[1732577386599,0.053355,93717.0,93716.0,0.001]
[1732577386801,0.053355,93717.0,93716.0,0.002]
[1732577386996,0.07470448,93717.0,93716.0,0.003]
[1732577391702,0.02134948,93717.0,93716.0,0.056355]
[1732577392516,0.02134948,93717.0,93716.0,0.003]
[1732577396094,0.02134948,93717.0,93716.0,0.056355]
[1732577396498,0.36887218,93723.0,93722.0,0.053352]
[1732577396499,0.00128,93723.0,93722.0,0.053352]
[1732577396703,0.00128,93723.0,93716.0,0.235435]
[1732577396704,0.12775732,93725.0,93724.0,0.053351]
[1732577397004,0.00700867,93728.0,93717.0,0.21098]
[1732577397005,0.12775732,93726.0,93717.0,0.21098]
[1732577397198,0.09581536,93720.0,93717.0,0.21098]
[1732577397500,0.09581536,93720.0,93719.0,0.053353]
[1732577397701,0.02134948,93732.0,93720.0,0.053353]
[1732577397702,0.12775732,93724.0,93720.0,0.053353]
[1732577397895,0.13175732,93725.0,93720.0,0.053353]
[1732577398703,0.12775732,93724.0,93720.0,0.053353]
[1732577399309,0.053356,93715.0,93714.0,0.00688267]
[1732577399611,0.053357,93712.0,93704.0,0.03]
[1732577399900,0.09583955,93710.0,93704.0,0.03]
[1732577400101,0.09583955,93706.0,93705.0,0.053361]
[1732577400407,0.12775732,93708.0,93704.0,0.03]
[1732577400606,0.12775732,93709.0,93708.0,0.05336]
[1732577401106,0.12775732,93709.0,93704.0,0.21064]
[1732577401297,0.053361,93706.0,93705.0,0.002]
[1732577402706,0.053361,93706.0,93705.0,0.003]
[1732577402902,0.053361,93706.0,93705.0,0.001]
[1732577403709,0.053361,93706.0,93705.0,0.003]
[1732577404410,0.414161,93706.0,93705.0,0.003]
[1732577404705,0.54198792,93706.0,93705.0,0.003]
[1732577405099,0.414161,93706.0,93705.0,0.003]
[1732577406409,0.52062278,93706.0,93705.0,0.003]
[1732577407111,0.3608,93706.0,93705.0,0.003]
[1732577407310,0.053364,93701.0,93700.0,0.1]
[1732577407606,0.10526858,93701.0,93700.0,0.1]
[1732577407810,0.15983615,93701.0,93700.0,0.153364]
[1732577408006,0.15983481,93702.0,93700.0,0.1]
[1732577408208,0.15983481,93703.0,93701.0,0.053364]
[1732577408516,0.12785579,93704.0,93700.0,0.101]
[1732577408716,0.12785579,93704.0,93702.0,0.053363]
[1732577409211,0.12785579,93703.0,93700.0,0.1]
[1732577409401,0.12785579,93704.0,93701.0,0.001]
[1732577409600,0.18121879,93703.0,93701.0,0.001]
[1732577409801,0.085663,93703.0,93701.0,0.001]
[1732577410105,0.085663,93703.0,93702.0,0.001]
[1732577410606,0.085663,93703.0,93701.0,0.001]
[1732577410914,0.085663,93703.0,93701.0,0.002]
[1732577411112,0.05190527,93702.0,93701.0,0.002]
[1732577411312,0.085663,93703.0,93702.0,0.001]
[1732577411609,0.13756754,93703.0,93702.0,0.001]
[1732577412108,0.08420454,93703.0,93700.0,0.1]
[1732577412411,0.053363,93702.0,93701.0,0.001]
[1732577412910,0.053363,93702.0,93700.0,0.1]
[1732577413111,0.15972487,93701.0,93700.0,0.1]
[1732577413306,0.21308787,93702.0,93700.0,0.1]
[1732577413606,0.21308787,93702.0,93700.0,0.101]
[1732577414506,0.21308787,93702.0,93701.0,0.001]
[1732577414898,0.03916063,93703.0,93701.0,0.001]
[1732577414899,0.00686063,93703.0,93702.0,0.053363]
[1732577415107,0.38347301,93706.0,93702.0,0.053363]
[1732577415108,0.09711096,93706.0,93702.0,0.053363]
[1732577415313,0.0957862,93712.0,93702.0,0.053363]
[1732577415513,0.12772529,93717.0,93710.0,0.053359]
[1732577415514,0.0957862,93711.0,93710.0,0.053359]
[1732577415811,0.0957862,93715.0,93714.0,0.053356]
[1732577416312,0.10287196,93717.0,93714.0,0.053356]
[1732577416609,0.00128,93721.0,93720.0,0.053353]
[1732577416809,0.12772529,93731.0,93729.0,0.053348]
[1732577417115,0.12772529,93735.0,93732.0,0.053346]
[1732577417316,0.1490783,93736.0,93732.0,0.053346]
[1732577417610,0.053344,93735.0,93732.0,0.053346]
[1732577417910,0.1490783,93736.0,93728.0,0.053348]
[1732577417911,0.053347,93731.0,93728.0,0.053348]
[1732577418210,0.1490783,93736.0,93720.0,0.3608]
[1732577418211,0.12772529,93735.0,93722.0,0.053351]
[1732577418410,0.12772529,93735.0,93721.0,0.17868]
[1732577418411,0.2024223,93736.0,93729.0,0.053347]
[1732577418603,0.2024223,93736.0,93730.0,0.053347]
[1732577418604,0.053346,93733.0,93730.0,0.053347]
[1732577419001,0.053346,93733.0,93732.0,0.001]
[1732577419502,0.053346,93733.0,93730.0,0.053347]
[1732577419711,0.02735301,93736.0,93729.0,0.001]
[1732577419906,0.02735301,93736.0,93734.0,0.053345]
[1732577421206,0.061345,93733.0,93732.0,0.001]
[1732577421507,0.064345,93733.0,93732.0,0.001]
[1732577422013,0.003,93733.0,93722.0,0.17864]
[1732577422311,0.03335301,93736.0,93723.0,0.053351]
[1732577422521,0.008,93733.0,93732.0,0.001]
[1732577423110,0.006,93733.0,93731.0,0.053346]
[1732577423507,0.006,93733.0,93732.0,0.033]
[1732577423708,0.006,93733.0,93732.0,0.35304]
[1732577424113,0.00703267,93744.0,93732.0,0.35304]
[1732577424314,0.00010045,93750.0,93749.0,0.053336]
[1732577424514,0.00010045,93750.0,93749.0,0.231976]
[1732577424815,0.3608,93765.0,93764.0,0.053328]
[1732577425613,0.3608,93765.0,93764.0,0.05342456]
[1732577426207,0.3608,93765.0,93764.0,0.05442456]
[1732577426409,0.3608,93765.0,93764.0,0.05542456]
[1732577427005,0.3608,93765.0,93764.0,0.00209656]
[1732577428115,0.3608,93765.0,93764.0,0.00109656]
[1732577428309,0.3618,93765.0,93764.0,0.00109656]
[1732577428512,0.3947,93765.0,93764.0,0.00109656]
[1732577428718,0.3937,93765.0,93764.0,0.00109656]
[1732577428913,0.3967,93765.0,93764.0,0.00109656]
[1732577429417,0.3997,93765.0,93764.0,0.00209656]
[1732577430310,0.3668,93765.0,93764.0,0.00209656]
[1732577430515,0.3668,93765.0,93764.0,0.00109656]
[1732577430722,0.3688,93765.0,93764.0,0.00109656]
[1732577431020,0.3628,93765.0,93764.0,0.00109656]
[1732577431210,0.3688,93765.0,93764.0,0.00109656]
[1732577431612,0.3608,93765.0,93764.0,9.656e-05]
[1732577431811,0.3688,93765.0,93764.0,0.00109656]
[1732577432818,0.3688,93765.0,93764.0,9.656e-05]
[1732577432819,0.3628,93765.0,93764.0,9.656e-05]
[1732577433419,0.3608,93765.0,93764.0,9.656e-05]
[1732577433613,0.3608,93765.0,93764.0,0.00109656]
[1732577434218,0.3608,93765.0,93764.0,9.656e-05]
[1732577434419,0.3628,93765.0,93764.0,0.32005656]
[1732577434621,0.002,93765.0,93764.0,0.38355656]
[1732577434821,0.3608,93777.0,93776.0,0.053321]
[1732577435025,0.41412,93777.0,93776.0,0.17824]
[1732577435215,0.053327,93766.0,93764.0,0.56680456]
[1732577435417,0.053327,93766.0,93765.0,0.17824]
[1732577435619,0.053327,93766.0,93764.0,0.48171656]
[1732577435620,0.053327,93766.0,93764.0,0.00169656]
[1732577435924,0.053327,93766.0,93764.0,0.00109656]
[1732577436417,0.053327,93766.0,93764.0,9.656e-05]
[1732577437021,0.053327,93766.0,93764.0,0.00209656]
[1732577438431,0.06025471,93766.0,93764.0,0.00209656]
[1732577439227,0.42105471,93766.0,93764.0,9.656e-05]
[1732577439426,0.42405471,93766.0,93764.0,9.656e-05]
[1732577440627,0.42605471,93766.0,93764.0,0.00109656]
[1732577441424,0.42805471,93766.0,93764.0,0.00109656]
[1732577442729,0.42605471,93766.0,93764.0,0.00109656]
[1732577442931,0.42805471,93766.0,93764.0,5.6e-07]
[1732577443121,0.01,93757.0,93726.0,0.1782]
[1732577443322,0.053349,93727.0,93726.0,0.1782]
[1732577443731,0.053356,93715.0,93714.0,0.032]
[1732577444232,0.053356,93715.0,93714.0,0.2102]
[1732577445022,0.053356,93715.0,93714.0,0.2112]
[1732577445228,0.053356,93715.0,93714.0,0.21124]
[1732577445938,0.053356,93715.0,93714.0,0.21224]
[1732577446333,0.053356,93715.0,93714.0,0.034]
[1732577446525,0.053356,93715.0,93714.0,0.21224]
[1732577448230,0.053356,93715.0,93714.0,0.034]
[1732577448535,0.053356,93715.0,93714.0,0.002]
[1732577448835,0.053356,93715.0,93691.0,0.053369]
[1732577448836,0.6608,93715.0,93682.0,0.3608]
[1732577449140,0.3608,93691.0,93679.0,0.17824]
[1732577449338,0.3608,93691.0,93680.0,0.17824]
[1732577449339,0.053375,93681.0,93680.0,0.17824]
[1732577449538,0.3608,93691.0,93669.0,0.3917]
[1732577449834,0.3608,93691.0,93669.0,0.17824]
[1732577449835,0.053381,93670.0,93669.0,0.17824]
[1732577450229,0.3608,93674.0,93665.0,0.44892]
[1732577450537,0.053384,93666.0,93665.0,0.44836]
[1732577450732,0.053384,93666.0,93665.0,0.62664]
[1732577450933,0.053384,93666.0,93665.0,0.94692]
[1732577451128,0.053384,93666.0,93665.0,0.62664]
[1732577452330,0.053384,93666.0,93651.0,0.3608]
[1732577452331,0.053391,93653.0,93651.0,0.3608]
[1732577452636,0.3608,93658.0,93625.0,0.55076074]
[1732577452825,0.053405,93628.0,93626.0,0.0322]
[1732577453031,0.053405,93628.0,93627.0,6.229e-05]
[1732577453244,0.0007,93644.0,93628.0,0.3204]
[1732577453428,0.052396,93644.0,93643.0,0.3608]
[1732577453737,0.053391,93654.0,93643.0,0.53914229]
[1732577453936,0.053391,93654.0,93651.0,0.3608]
[1732577454330,0.053391,93654.0,93652.0,0.17832]
[1732577454838,0.053392,93652.0,93651.0,0.3608]
[1732577455931,0.053387,93660.0,93651.0,0.3618]
[1732577456331,0.17832,93668.0,93653.0,0.05339]
[1732577456332,0.053383,93668.0,93653.0,0.05339]
[1732577456738,0.053383,93668.0,93652.0,0.0318]
[1732577456932,0.053383,93668.0,93660.0,0.3608]
[1732577457128,0.053383,93668.0,93652.0,0.0318]
[1732577457129,0.053383,93668.0,93661.0,0.17836]
[1732577457332,0.3608,93683.0,93662.0,0.17836]
[1732577457535,0.3608,93683.0,93660.0,0.3608]
[1732577457536,0.053384,93666.0,93663.0,0.17836]
[1732577458444,0.004,93668.0,93654.0,0.00851329]
[1732577458640,0.05339,93655.0,93654.0,0.00851329]
[1732577459342,0.0323,93659.0,93651.0,0.3608]
[1732577459647,0.053391,93653.0,93651.0,0.3608]
[1732577460054,0.053388,93658.0,93651.0,0.3608]
[1732577460552,0.04098657,93659.0,93651.0,0.3608]
[1732577460742,0.053391,93653.0,93651.0,0.3608]
[1732577460942,0.053396,93644.0,93643.0,6.229e-05]
[1732577462250,0.414196,93644.0,93643.0,6.229e-05]
[1732577462839,0.414196,93644.0,93643.0,0.00106229]
[1732577463149,0.42285061,93644.0,93643.0,0.00106229]
[1732577463548,0.42285061,93644.0,93643.0,0.001]
[1732577463749,0.053408,93624.0,93621.0,0.17796]
[1732577463945,0.053408,93624.0,93613.0,0.053414]
[1732577463946,0.053408,93624.0,93618.0,0.17796]
[1732577464139,0.053408,93624.0,93613.0,0.053414]
[1732577464460,0.053403,93633.0,93611.0,0.17796]
[1732577464747,0.05341,93621.0,93612.0,0.17796]
[1732577464947,0.05341,93621.0,93610.0,0.3608]
[1732577464948,0.3608,93625.0,93610.0,0.3608]
[1732577465154,0.3608,93625.0,93611.0,0.17796]
[1732577465550,0.053404,93630.0,93621.0,0.001]
[1732577465757,0.3608,93640.0,93629.0,0.3608]
[1732577465953,0.3608,93655.0,93639.0,0.3608]
[1732577466252,0.0314,93662.0,93648.0,0.053393]
[1732577466253,0.00878074,93656.0,93648.0,0.053393]
[1732577466548,0.0314,93662.0,93648.0,0.053393]
[1732577466739,0.053389,93656.0,93648.0,0.053393]
[1732577466944,0.0213698,93657.0,93647.0,0.3608]
[1732577467144,0.3608,93665.0,93647.0,0.053394]
[1732577467343,0.3608,93665.0,93655.0,0.3608]
[1732577467564,0.00148,93685.0,93663.0,0.3608]
[1732577467756,0.414172,93686.0,93677.0,0.053377]
[1732577468058,0.414172,93686.0,93674.0,0.3608]
[1732577468059,0.053378,93675.0,93674.0,0.3608]
[1732577468242,0.0213698,93681.0,93674.0,0.3608]
[1732577468243,0.0213698,93681.0,93674.0,0.178]
[1732577468744,0.3693997,93686.0,93674.0,0.178]
[1732577468952,0.3608,93686.0,93680.0,0.053375]
[1732577469154,0.3608,93686.0,93674.0,0.178]
[1732577469453,0.053376,93680.0,93674.0,0.231379]
[1732577469751,0.414172,93686.0,93676.0,0.053378]
[1732577469945,0.414172,93686.0,93674.0,0.179]
[1732577469946,0.053373,93685.0,93677.0,0.053377]
[1732577470147,0.3608,93686.0,93674.0,0.001]
[1732577470347,0.053374,93683.0,93674.0,0.002]
[1732577470546,0.3608,93686.0,93674.0,0.002]
[1732577470754,0.07473377,93691.0,93674.0,0.002]
[1732577471055,0.007,93686.0,93679.0,0.3608]
[1732577471354,0.009,93686.0,93679.0,0.053376]
[1732577471554,0.002,93686.0,93679.0,0.053376]
[1732577471851,0.05337,93690.0,93679.0,0.053376]
[1732577472053,0.02136477,93691.0,93674.0,0.001]
[1732577472054,0.02136477,93691.0,93674.0,0.002]
[1732577472255,0.053374,93683.0,93674.0,0.002]
[1732577472554,0.053375,93681.0,93675.0,0.053378]
[1732577472749,0.053374,93683.0,93674.0,0.055379]
[1732577472946,0.02136477,93691.0,93674.0,0.055379]
[1732577473147,0.02136477,93691.0,93674.0,0.002]
[1732577473351,0.053378,93676.0,93674.0,0.001]
[1732577473850,0.053385,93664.0,93663.0,0.17796]
[1732577474045,0.3608,93670.0,93660.0,0.17796]
[1732577474351,0.0321,93677.0,93651.0,0.81785117]
[1732577474352,0.053383,93667.0,93659.0,0.17796]
[1732577474652,0.053383,93667.0,93660.0,0.17796]
[1732577474855,0.033,93669.0,93660.0,0.17796]
[1732577475051,0.033,93669.0,93659.0,0.17796]
[1732577475968,0.033,93669.0,93657.0,0.17796]
[1732577476256,0.033,93669.0,93660.0,0.001]
[1732577476257,0.09506534,93669.0,93660.0,0.001]
[1732577476449,0.006,93670.0,93660.0,0.001]
[1732577476649,0.006,93670.0,93668.0,0.053382]
[1732577476853,0.12647701,93681.0,93661.0,0.17796]
[1732577477159,0.053374,93684.0,93675.0,0.053378]
[1732577477459,0.053376,93679.0,93668.0,0.3608]
[1732577477650,0.053379,93675.0,93669.0,0.17796]
[1732577477854,0.053382,93669.0,93661.0,0.00870992]
[1732577478053,0.053386,93662.0,93661.0,0.17796]
[1732577478551,0.12647701,93666.0,93661.0,0.17796]
[1732577478752,0.12647701,93668.0,93665.0,0.053384]
[1732577478951,0.12647701,93669.0,93665.0,0.053384]
[1732577479152,0.12647701,93670.0,93665.0,0.053384]
[1732577479352,0.0323,93674.0,93669.0,0.053382]
[1732577479551,0.0323,93674.0,93670.0,0.17796]
[1732577479552,0.1274312,93674.0,93670.0,0.17796]
[1732577479766,0.1274312,93674.0,93671.0,0.05338]
[1732577480060,0.00148,93677.0,93675.0,0.053378]
[1732577480253,0.1577312,93682.0,93680.0,0.053375]
[1732577480452,0.1577312,93682.0,93672.0,0.3608]
[1732577480453,0.0303,93682.0,93672.0,0.3608]
[1732577480662,0.005,93674.0,93673.0,0.05338]
[1732577481161,0.1274312,93687.0,93675.0,0.001]
[1732577481363,0.1808022,93689.0,93680.0,0.3608]
[1732577481660,0.1274312,93689.0,93680.0,0.3608]
[1732577481858,0.1274312,93689.0,93675.0,0.001]
[1732577481859,0.053378,93676.0,93675.0,0.001]
[1732577482255,0.053379,93674.0,93645.0,0.3608]
[1732577482570,0.05339,93656.0,93649.0,0.053393]
[1732577482758,0.053393,93650.0,93645.0,0.3608]
[1732577483057,0.053395,93647.0,93646.0,0.17796]
[1732577483558,0.12741497,93652.0,93646.0,0.17796]
[1732577483856,0.12741497,93652.0,93645.0,0.001]
[1732577484069,0.15951497,93654.0,93651.0,0.053392]
[1732577484265,0.0321,93654.0,93651.0,0.053392]
[1732577484455,0.053391,93653.0,93651.0,0.3608]
[1732577484762,0.053391,93653.0,93652.0,0.00310796]
[1732577485462,0.15771497,93655.0,93652.0,0.00310796]
[1732577485653,0.12741497,93653.0,93652.0,0.00310796]
[1732577485859,0.3608,93653.0,93652.0,0.00310796]
[1732577486061,0.52006872,93653.0,93652.0,0.00310796]
[1732577486258,0.5199856,93653.0,93652.0,0.00310796]
[1732577486561,0.5199856,93653.0,93631.0,0.17796]
[1732577486562,0.053402,93635.0,93631.0,0.17796]
[1732577487059,0.053402,93635.0,93630.0,0.3608]
[1732577487262,0.053403,93632.0,93630.0,0.3608]
[1732577487463,0.053403,93632.0,93624.0,0.446508]
[1732577487657,0.3608,93645.0,93623.0,0.178]
[1732577487658,0.053406,93628.0,93623.0,0.178]
[1732577488255,0.053406,93628.0,93621.0,0.178]
[1732577488755,0.15763162,93633.0,93621.0,0.178]
[1732577488756,0.0303,93633.0,93621.0,0.178]
[1732577488958,0.0303,93633.0,93628.0,0.053405]
[1732577490354,0.0303,93633.0,93628.0,0.054405]
[1732577490861,0.053405,93630.0,93628.0,0.001]
[1732577491067,0.0303,93633.0,93604.0,0.085318]
[1732577491068,0.04664993,93629.0,93609.0,0.17772]
[1732577491260,0.3608,93616.0,93592.0,0.19216056]
[1732577491450,0.05342,93602.0,93583.0,0.031]
[1732577491654,0.07704233,93601.0,93600.0,0.07595114]
[1732577491867,0.05539034,93601.0,93600.0,0.07595114]
[1732577492055,0.04000699,93601.0,93600.0,0.07595114]
[1732577492760,0.04845843,93601.0,93600.0,0.07595114]
[1732577492955,0.03884384,93601.0,93600.0,0.07595114]
[1732577493161,0.03984384,93601.0,93600.0,0.07595114]
[1732577493559,0.0313924,93601.0,93600.0,0.07595114]
[1732577493752,0.001,93601.0,93600.0,0.07595114]
[1732577495056,0.01016978,93601.0,93600.0,0.07595114]
[1732577495255,0.06359078,93601.0,93600.0,0.07595114]
[1732577495459,0.054421,93601.0,93600.0,0.07595114]
[1732577495670,0.06358793,93601.0,93600.0,0.07595114]
[1732577496963,0.07887456,93601.0,93600.0,0.07595114]
[1732577498260,0.02545356,93601.0,93600.0,0.07595114]
[1732577499077,0.07942892,93601.0,93600.0,0.07595114]
[1732577500068,0.06403943,93601.0,93600.0,0.07595114]
[1732577501161,0.06403943,93601.0,93568.0,0.056139]
[1732577501162,0.053436,93575.0,93570.0,0.3608]
[1732577501362,0.053422,93600.0,93570.0,0.3608]
[1732577501363,0.00961843,93574.0,93570.0,0.3608]
[1732577501567,0.00961843,93573.0,93570.0,0.3608]
[1732577501766,0.3608,93584.0,93570.0,0.3608]
[1732577501767,0.06305643,93572.0,93570.0,0.3608]
[1732577501973,0.00961843,93571.0,93570.0,0.3608]
[1732577502760,0.00961843,93571.0,93570.0,0.3618]
[1732577503157,0.00863864,93571.0,93570.0,0.3618]
[1732577503374,0.033,93583.0,93570.0,0.3618]
[1732577503872,0.053436,93574.0,93570.0,0.3628]
[1732577504075,0.00913682,93573.0,93570.0,0.3628]
[1732577504268,0.053436,93574.0,93570.0,0.3628]
[1732577504269,0.00913682,93572.0,93570.0,0.3628]
[1732577504466,0.00913682,93571.0,93570.0,0.3628]
[1732577506079,0.00920845,93571.0,93570.0,0.3638]
[1732577506477,0.00920845,93571.0,93570.0,0.3618]
[1732577506774,0.00920845,93571.0,93570.0,0.3638]
[1732577506976,0.00920845,93571.0,93570.0,0.3628]
[1732577507271,0.00920845,93571.0,93570.0,0.003]
[1732577508572,0.01776897,93571.0,93570.0,0.003]
[1732577509171,0.01776897,93571.0,93545.0,0.0312]
[1732577509172,0.053447,93555.0,93547.0,0.3608]
[1732577509476,0.65375318,93571.0,93547.0,0.3608]
[1732577509477,0.00961763,93554.0,93553.0,0.053448]
[1732577509667,0.00961763,93554.0,93548.0,0.0312]
[1732577509868,0.053448,93553.0,93548.0,0.0312]
[1732577510075,0.01538822,93554.0,93548.0,0.0312]
[1732577510378,0.02522042,93553.0,93548.0,0.084651]
[1732577510567,0.02522042,93552.0,93548.0,0.084651]
[1732577510767,0.02522042,93551.0,93549.0,0.05345]
[1732577510971,0.02522042,93550.0,93549.0,0.05345]
[1732577511176,0.00982993,93550.0,93549.0,0.05345]
[1732577511868,0.00982993,93550.0,93549.0,0.23129]
[1732577512471,0.00982993,93550.0,93549.0,0.17784]
[1732577512678,0.06327993,93550.0,93548.0,0.001]
[1732577512868,0.04102993,93549.0,93548.0,0.001]
[1732577513073,0.04071797,93549.0,93548.0,0.001]
[1732577513374,0.052451,93548.0,93547.0,0.3608]
[1732577513770,0.06162949,93548.0,93547.0,0.3608]
[1732577513976,0.06062949,93548.0,93547.0,0.3608]
[1732577514368,0.06462949,93548.0,93547.0,0.3608]
[1732577514564,0.06562949,93548.0,93547.0,0.3608]
[1732577514768,0.06562949,93548.0,93539.0,0.3608]
[1732577514769,0.053456,93540.0,93539.0,0.3608]
[1732577514973,0.06263449,93540.0,93539.0,0.3608]
[1732577515165,0.07805541,93540.0,93539.0,0.3608]
[1732577515768,0.0785273,93540.0,93539.0,0.3608]
[1732577516277,0.0785273,93540.0,93539.0,0.3618]
[1732577516574,0.0785273,93540.0,93539.0,0.3628]
[1732577516966,0.10260373,93540.0,93539.0,0.3628]
[1732577517168,0.08717524,93540.0,93539.0,0.3628]
[1732577517472,0.03371924,93540.0,93539.0,0.3628]
[1732577518068,0.01818348,93540.0,93539.0,0.3628]
[1732577519275,0.01778127,93540.0,93539.0,0.3628]
[1732577520679,0.00847363,93540.0,93539.0,0.3628]
[1732577520872,0.38218942,93557.0,93539.0,0.68352]
[1732577520873,0.02138942,93557.0,93539.0,0.68352]
[1732577521078,0.053447,93556.0,93554.0,0.3608]
[1732577521285,0.00920331,93555.0,93554.0,0.3608]
[1732577521483,0.00920331,93555.0,93543.0,0.17764]
[1732577521672,0.053453,93544.0,93543.0,0.17764]
[1732577521875,0.06265631,93544.0,93543.0,0.17764]
[1732577522283,0.00920331,93544.0,93543.0,0.17764]
[1732577522882,0.01120331,93544.0,93543.0,0.17764]
[1732577523391,0.02656804,93544.0,93543.0,0.17764]
[1732577524282,0.02656804,93544.0,93543.0,0.15357829]
[1732577524989,0.002,93544.0,93543.0,0.15357829]
[1732577525176,0.02712138,93544.0,93543.0,0.15357829]
[1732577525486,0.04877337,93544.0,93543.0,0.12015945]
[1732577525677,0.02712138,93544.0,93543.0,0.17958139]
[1732577525877,0.04877337,93544.0,93543.0,0.09609788]
[1732577526082,0.04877337,93544.0,93540.0,0.0628]
[1732577526387,0.04677337,93543.0,93542.0,0.053454]
[1732577526976,0.04755816,93543.0,93542.0,0.053454]
[1732577527382,0.02165199,93543.0,93542.0,0.231094]
[1732577527683,0.00862682,93554.0,93542.0,0.17764]
[1732577527684,0.12733162,93550.0,93542.0,0.17764]
[1732577527891,0.00862682,93554.0,93549.0,0.3608]
[1732577527892,0.18077962,93553.0,93549.0,0.3608]
[1732577528079,0.12733162,93552.0,93549.0,0.3608]
[1732577528278,0.053449,93551.0,93549.0,0.3608]
[1732577528477,0.12733162,93550.0,93549.0,0.3608]
[1732577528684,0.18171194,93550.0,93549.0,0.3608]
[1732577528977,0.05438311,93550.0,93549.0,0.3608]
[1732577529179,0.05438311,93550.0,93540.0,0.033]
[1732577529378,0.1818481,93549.0,93547.0,0.053451]
[1732577529580,0.05345,93551.0,93548.0,0.30651887]
[1732577529786,0.05345,93549.0,93548.0,0.30651887]
[1732577529991,0.11011692,93549.0,93548.0,0.30651887]
[1732577530183,0.05666692,93549.0,93548.0,0.30651887]
[1732577530379,0.18421594,93549.0,93548.0,0.30651887]
[1732577530579,0.05766692,93549.0,93548.0,0.30651887]
[1732577531283,0.053456,93539.0,93538.0,0.3608]
[1732577531480,0.23777941,93539.0,93538.0,0.3608]
[1732577531684,0.07976564,93539.0,93538.0,0.3608]
[1732577532483,0.07976564,93539.0,93538.0,0.3618]
[1732577532484,0.02630964,93539.0,93538.0,0.3618]
[1732577532685,0.01011909,93539.0,93538.0,0.3618]
[1732577532893,0.01011909,93539.0,93538.0,0.735977]
[1732577533187,0.21110493,93557.0,93538.0,1.04963241]
[1732577533188,0.1276476,93553.0,93538.0,1.04963241]
[1732577533385,0.15953037,93562.0,93552.0,0.414249]
[1732577533582,0.02138805,93571.0,93568.0,0.053439]
[1732577533892,0.02138805,93571.0,93570.0,0.60618641]
[1732577534080,0.0027,93599.0,93575.0,0.053435]
[1732577534081,0.18971551,93598.0,93575.0,0.053435]
[1732577534395,0.0321,93613.0,93606.0,0.053418]
[1732577534593,0.0327,93621.0,93612.0,0.053414]
[1732577534778,0.22007279,93624.0,93605.0,0.3608]
[1732577534779,0.03035728,93624.0,93608.0,0.17764]
[1732577535101,0.053416,93610.0,93609.0,0.00013651]
[1732577535297,0.053416,93610.0,93592.0,0.0027]
[1732577535298,0.3608,93617.0,93587.0,0.3608]
[1732577535498,0.053417,93607.0,93588.0,0.05954005]
[1732577535798,0.053425,93593.0,93587.0,0.3608]
[1732577536499,0.053425,93593.0,93588.0,0.17764]
[1732577537201,0.09561796,93597.0,93589.0,0.17764]
[1732577537202,0.053427,93590.0,93589.0,0.17764]
[1732577537400,0.09561796,93597.0,93589.0,0.17764]
[1732577537700,0.09561796,93597.0,93587.0,0.3628]
[1732577537701,0.4229,93609.0,93596.0,0.3608]
[1732577537891,0.09551108,93599.0,93596.0,0.3608]
[1732577538096,0.09551108,93601.0,93595.0,0.053424]
[1732577538296,0.053425,93595.0,93587.0,0.416228]
[1732577538494,0.09551108,93600.0,93587.0,0.416228]
[1732577538495,0.053427,93589.0,93588.0,0.1776]
[1732577538899,0.053427,93589.0,93587.0,0.5384]
[1732577539606,0.053427,93589.0,93587.0,0.5394]
[1732577539994,0.06190343,93589.0,93588.0,0.001]
[1732577540302,0.06290343,93589.0,93588.0,0.001]
[1732577540498,0.06290343,93589.0,93587.0,0.3608]
[1732577540499,0.06290343,93589.0,93587.0,0.3618]
[1732577541599,0.053427,93589.0,93587.0,0.3618]
[1732577541801,0.002,93589.0,93588.0,0.32056]
[1732577541992,0.006,93589.0,93588.0,0.32056]
[1732577542303,0.09551108,93615.0,93612.0,0.053414]
[1732577542500,0.0027,93620.0,93611.0,0.1776]
[1732577542501,0.09551108,93620.0,93611.0,0.1776]
[1732577542705,0.00148,93626.0,93596.0,0.44908]
[1732577542706,0.053413,93615.0,93612.0,0.1776]
[1732577543001,0.053413,93615.0,93613.0,0.1776]
[1732577543197,0.0325,93614.0,93613.0,0.1776]
[1732577543400,0.3933,93614.0,93597.0,0.3608]
[1732577543603,0.053427,93590.0,93588.0,0.3618]
[1732577543804,0.0325,93589.0,93588.0,0.001]
[1732577544007,0.0938,93589.0,93588.0,0.001]
[1732577544798,0.0325,93589.0,93583.0,0.3608]
[1732577545113,0.0325,93589.0,93587.0,0.053428]
[1732577545405,0.0365,93589.0,93588.0,0.1776]
[1732577546004,0.0325,93589.0,93588.0,0.231028]
[1732577546604,0.0355,93589.0,93588.0,0.231028]
[1732577547211,0.003,93589.0,93588.0,0.231028]
[1732577547704,0.003,93589.0,93588.0,0.232028]
[1732577548513,0.002,93589.0,93588.0,0.232028]
[1732577549210,0.053422,93599.0,93593.0,0.053425]
[1732577550004,0.0331,93609.0,93588.0,0.1786]
[1732577550208,0.03960615,93603.0,93588.0,0.18720529]
[1732577550413,0.03960615,93603.0,93592.0,0.053426]
[1732577550414,0.053423,93598.0,93592.0,0.053426]
[1732577550710,0.053424,93596.0,93592.0,0.053426]
[1732577550900,0.053425,93594.0,93588.0,0.1776]
[1732577551100,0.3608,93597.0,93578.0,0.053434]
[1732577551406,0.053431,93583.0,93578.0,0.053434]
[1732577551608,0.0319,93582.0,93579.0,0.230793]
[1732577551804,0.0319,93582.0,93580.0,0.053432]